Cogmind - Beta 17 @@@ ROGUE MODE // 2026.07.28 @ 13:24:05 Player: Petvaria Result: Self-destructed Performance ------------- Evolutions (5) 2500 Regions Visited (5) 1000 Robots Destroyed (63) 315 Value Destroyed (1947) 1947 Prototype IDs (27) 540 Alien Tech Used (0) 0 Bonus (800) 800 TOTAL SCORE: 7102 Bonus ------- Registered with UFD 300 Met Optimus in HQ 500 Cogmind --------- Core Integrity 289/1000 Matter 113/300 Energy 150/150 System Corruption 10% Temperature Cool (0) Movement Walking (330) Ox3 Location -5/Factory Parts ------- > --- POWER (2) -------- Micro Fission Core > --- PROPULSION (4) --- Carbon-fiber Leg > --- UTILITY (7) ------ Advanced Heat Sink High-capacity Storage Unit Transport Network Coupler Core Analyzer Tractor Beam > --- WEAPON (4) ------- Ion Burst Cannon > --- INVENTORY (20) --- Improved Heat Sink Advanced Heat Sink Compact Matter Pod (150) Machine Analyzer Improved Signal Interpreter Experimental Terrain Scanner Improved Medium Armor Plating Long-range Tractor Beam Heavy Laser Heavy Laser Battle Rifle Gauss Rifle Battle Cannon CPS Tube (2) Multitool Peak State ------------ > --- POWER ------------ Light Angular Momentum Engine Light Angular Momentum Engine > --- PROPULSION ------- Light Treads Spiked Treads Medium Treads Compact Wheel > --- UTILITY ---------- Advanced Heat Sink Improved Cooling System High-capacity Storage Unit Transport Network Coupler Improved Medium Armor Plating Improved Medium Armor Plating Long-range Tractor Beam > --- WEAPON ----------- Heavy Laser Wave Gun Ion Burst Cannon Barrage Gun > --- INVENTORY -------- Carbon-fiber Leg Carbon-fiber Leg Carbon-fiber Leg Advanced Heat Sink Compact Matter Pod Machine Analyzer Improved Signal Interpreter Experimental Terrain Scanner Improved Medium Armor Plating Tractor Beam Heavy Laser Ion Burst Cannon Battle Rifle Gauss Rifle Battle Cannon Subdweller Shrapnel Launcher Improved Grenade Launcher CPS Tube Multitool [Rating: 68] Favorites ----------- Power Subdweller Power Source Engine Subdweller Power Source Power Core Fission Core Propulsion Light Treads Treads Light Treads Leg Carbon-fiber Leg Wheel Compact Wheel Utility High-capacity Storage Unit Device Tractor Beam Storage High-capacity Storage Unit Processor Transport Network Coupler Protection Scrap Shield Weapon Subdweller Beam Cannon Energy Gun Subdweller Laser Energy Cannon Subdweller Beam Cannon Ballistic Gun Barrage Gun Ballistic Cannon Battle Cannon Launcher Improved Grenade Launcher Build | -11 -10 -10 -7 -7 -5 ------- Run | Yrd Mat Sub Rec Scr Fac Slots Evolved 10 | . . . . . 10 Power 1 | . . . . . 1 Propulsion 2 | . . . . . 2 Utility 5 | . . . . . 5 Weapon 2 | . . . . . 2 Parts Attached 55 | 7 2 17 . 5 24 Power 8 | 1 . 2 . 2 3 Engine 5 | 1 . 2 . . 2 Core 3 | . . . . 2 1 Reactor . | . . . . . . Propulsion 11 | 2 . 2 . . 7 Treads 8 | 2 . 2 . . 4 Leg 2 | . . . . . 2 Wheel 1 | . . . . . 1 Hover . | . . . . . . Flight . | . . . . . . Utility 17 | 2 2 4 . 2 7 Device 6 | 1 . 1 . 1 3 Storage 3 | 1 2 . . . . Processor 2 | . . . . . 2 Hackware . | . . . . . . Protection 6 | . . 3 . 1 2 Artifact . | . . . . . . Weapon 19 | 2 . 9 . 1 7 Energy Gun 5 | . . 3 . . 2 Energy Cannon 4 | . . 2 . . 2 Ballistic Gun 6 | 2 . 2 . 1 1 Ballistic Cannon 2 | . . 2 . . . Launcher 2 | . . . . . 2 Special Weapon . | . . . . . . Impact Weapon . | . . . . . . Slashing Weapon . | . . . . . . Piercing Weapon . | . . . . . . Special Melee Weapon . | . . . . . . Unidentified Prototypes 1 | . . . . . 1 Parts Lost 25 | . . 5 . . 20 Power 5 | . . 2 . . 3 Propulsion 9 | . . 1 . . 8 Utility 3 | . . . . . 3 Weapon 8 | . . 2 . . 6 Highest Loss Streak 12 | . . 2 . . 12 To Critical Strikes 1 | . . 1 . . . Average Backups 11 | 3 11 7 18 18 17 Power . | . 1 . 4 . . Propulsion 2 | 2 4 1 3 3 2 Utility 3 | . 3 1 4 7 7 Weapon 4 | . 3 3 6 5 5 Tool/Special . | . . . . . . Unused Backups 33 | . 2 8 2 9 12 Power 5 | . . 1 . 4 . Propulsion 6 | . 1 3 . 1 1 Utility 12 | . 1 2 . 4 5 Weapon 8 | . . 2 2 . 4 Tool/Special 2 | . . . . . 2 Average Slot Usage (%) 91 | . 100 86 100 100 76 Engine 10 | . 14 13 14 1 5 Core 2 | . . . . 12 1 Treads 27 | . 28 27 28 28 18 Device 6 | . 14 1 14 11 9 Storage 7 | . 14 3 14 14 5 Protection 6 | . . 10 . 2 7 Energy Gun 4 | . . 6 . . 7 Energy Cannon 8 | . . 12 14 1 1 Ballistic Gun 12 | . 28 4 14 26 10 Ballistic Cannon 2 | . . 4 . . . Peak Build Rating 68 | 7 8 15 15 22 68 Average Rating 14 | 5 7 11 14 19 49 On Entrance 11 | . 7 8 15 15 22 Avg Prop Armor Cover (%) 13 | . . . . . 13 Naked Turns . | . . . . . . Heaviest Build 96 | 12 47 57 57 62 96 Greatest Support 98 | 40 40 40 40 40 98 Greatest Overweight (x) 5 | . 1 1 1 1 5 Average Overweight (x) . | . . . 1 1 . Largest Inventory Capacity 20 | 8 20 20 20 20 20 Average Capacity 13 | 7 17 8 20 20 20 Most Carried 20 | 7 17 20 20 20 20 Average Carried 12 | 4 12 7 19 19 17 Final Capacity 20 | 8 20 20 20 20 20 Final Carried 20 | 6 16 20 20 20 15 Class Distribution -------------------- 33% | Subdweller-Mutant 23% | Commander-Mutant 20% | Mutant 17% | Scavenger-Mutant Dominant Class ---------------- Mutant | -10/Materials Subdweller-Mutant | -10/Subcaves Scavenger-Mutant | -7/Recycling Commander-Mutant | -7/Scraptown Derelict-Tank | -5/Factory Resources | -11 -10 -10 -7 -7 -5 ----------- Run | Yrd Mat Sub Rec Scr Fac Matter Collected 2206 | 288 231 885 20 180 602 Remotely 381 | . . . . . 381 Salvage Created 2174 | 95 261 819 75 . 924 Parts 119 | 5 31 44 1 . 38 Haulers Intercepted 2 | . 1 . . . 1 Recyclers Shooed . | . . . . . . Parts Field Recycled . | . . . . . . Retrieved Matter . | . . . . . . Parts Self-Destructed 20 | . . 20 . . . Prevented . | . . . . . . Parts Restored . | . . . . . . Kills | -11 -10 -10 -7 -7 -5 ------- Run | Yrd Mat Sub Rec Scr Fac Combat Hostiles Destroyed 47 | . 9 21 1 . 16 Guns 25 | . 9 7 . . 9 Cannons 17 | . . 13 . . 4 AOE 3 | . . . . . 3 Classes Destroyed 16 | 2 3 4 1 . 6 Worker 4 | . 2 . . . 2 Builder 2 | . . . . . 2 Tunneler 4 | 1 3 . . . . Hauler 2 | . 1 . . . 1 Recycler 1 | 1 . . . . . Operator 1 | . . . . . 1 Turret 2 | . . 2 . . . Swarmer 13 | . 9 4 . . . Grunt 11 | . . 1 . . 10 Sentry 1 | . . . 1 . . Specialist 2 | . . . . . 2 Hunter 1 | . . . . . 1 Programmer 2 | . . . . . 2 Heavy 1 | . . . . . 1 Artisan 1 | . . 1 . . . Subdweller 16 | . . 16 . . . Best Kill Streak 8 | 2 3 4 1 . 8 Combat Bots Only 5 | . 3 4 1 . 5 Max Kills in Single Turn 3 | 1 1 1 1 . 3 Gunslinging . | . . . . . . Exploded 1 | . . . . . 1 Melee . | . . . . . . Uniques/NPCs Destroyed . | . . . . . . Combat | -11 -10 -10 -7 -7 -5 -------- Run | Yrd Mat Sub Rec Scr Fac Hostile Shots Fired 393 | . 30 141 30 . 192 Missed 110 | . 4 41 12 . 53 Hits 283 | . 26 100 18 . 139 Projectile 283 | . 26 100 18 . 139 AOE 1 | . . 1 . . . Critical Strikes 10 | . . 3 . . 7 Damage Taken 4929 | . 216 1394 141 . 3178 Core 877 | . 50 71 45 . 711 Absorbed by Shields . | . . . . . . Core Remaining (%) 66 | 100 . . . 33 . Volleys Fired 292 | 5 33 193 5 . 56 Largest 4 | 2 2 2 2 . 4 Hottest 278 | 40 40 90 108 . 278 Shots Fired 483 | 10 66 226 10 . 171 Gun 324 | 10 66 98 5 . 145 Cannon 147 | . . 128 5 . 14 Launcher 12 | . . . . . 12 Special . | . . . . . . Kinetic 294 | 10 66 125 5 . 88 Thermal 184 | . . 100 5 . 79 Explosive 4 | . . . . . 4 Electromagnetic 1 | . . 1 . . . Robot Hit Streak 17 | 7 8 17 10 . 15 Robot Miss Streak 6 | 1 6 5 1 . 4 Penetration Max . | . . . . . . Secondary Targets 1 | . 1 . . . . Max Gunslinging Chain 1 | . 1 . . . . Shots Hit Robots 227 | 7 27 79 8 . 106 Core Hits 111 | 3 19 29 2 . 58 Critical Kills 2 | . . 1 1 . . Critical Parts Destroyed . | . . . . . . Critical Strikes 4 | . . 1 1 . 2 Burn 2 | . . . . . 2 Meltdown 2 | . . 1 1 . . Melee Attacks . | . . . . . . Impact . | . . . . . . Slashing . | . . . . . . Piercing . | . . . . . . Sneak Attacks . | . . . . . . Combat Hostiles . | . . . . . . Follow-up Attacks . | . . . . . . Damage Inflicted 5937 | 73 336 1732 211 . 3585 Guns 2811 | 73 329 695 41 . 1673 Cannons 1687 | . . 1037 141 . 509 Explosions 1403 | . . . . . 1403 Melee . | . . . . . . Ramming 36 | . 7 . 29 . . Kinetic 2749 | 73 329 444 41 . 1862 Thermal 2927 | . . 1277 141 . 1509 Explosive 214 | . . . . . 214 Electromagnetic 11 | . . 11 . . . Impact . | . . . . . . Slashing . | . . . . . . Piercing . | . . . . . . Highest Corruption 10 | . . . . . 10 Average Corruption 6 | . . . . . 6 Corruption Purged . | . . . . . . Corruption Blocked . | . . . . . . Effects 4 | . . . . . 4 Message Errors 1 | . . . . . 1 Matter Fused 1 | . . . . . 1 Energy Discharges 1 | . . . . . 1 Data Loss (minor) 1 | . . . . . 1 Overload Shots . | . . . . . . Overflow Damage 44 | . . . 34 . 10 Projectiles 34 | . . . 34 . . Explosions 10 | . . . . . 10 Melee . | . . . . . . Knockbacks 1 | . . 1 . . . Impact . | . . . . . . Kinetic 1 | . . 1 . . . Secondary . | . . . . . . Self-Inflicted Damage 78 | . . . . . 78 Shots 2 | . . . . . 2 Rammed 8 | 1 4 . 3 . . Targets Rammed 8 | 1 4 . 3 . . Kicked . | . . . . . . Crushed . | . . . . . . Highest Temperature 232 | . . 12 232 . 216 Average Temperature 49 | . . 5 119 . 49 Received Heat Transfer 831 | . . 423 42 . 366 Siege Activations . | . . . . . . Martial Activations . | . . . . . . Shielding Activations . | . . . . . . Robots Disrupted . | . . . . . . Combat Hostiles . | . . . . . . Robots Corrupted . | . . . . . . Combat Hostiles . | . . . . . . Parts Fried . | . . . . . . Impact Corruptions . | . . . . . . Robots Melted 2 | . . 1 1 . . Combat Hostiles 2 | . . 1 1 . . Parts Melted 13 | . . 7 1 . 5 Heat Transferred 4219 | . . 1683 185 . 2351 Parts Sabotaged . | . . . . . . Parts Stolen . | . . . . . . Parts Stripped . | . . . . . . Power Chain Reactions . | . . . . . . Alert | -11 -10 -10 -7 -7 -5 ------- Run | Yrd Mat Sub Rec Scr Fac Maximum Alert Level 1 | . . . . . 1 Low Security (%) 99 | 100 100 . 100 . 99 Level 1 . | . . . . . . Level 2 . | . . . . . . Level 3 . | . . . . . . Level 4 . | . . . . . . Level 5 . | . . . . . . High Security . | . . . . . . Max Security . | . . . . . . Peak Influence 263 | 5 110 . 87 . 263 Initial 57 | . . . 57 . . Average 19 | 1 19 . 16 . 30 Influence Increases 1344 | 10 279 215 226 . 614 Destroy 0b10 Robot/C 660 | . 180 140 20 . 320 Destroy 0b10 Robot/NC 70 | 10 30 . . . 30 Destroy Leader 94 | . 32 . . . 62 Successful Hack 33 | . 7 . 26 . . Select Force Hacks 180 | . . . 180 . . Disable Machine 30 | . . . . . 30 Destroy Structure 172 | . . . . . 172 Lose Combat Pursuer 105 | . 30 75 . . . Influence Decreases 1101 | 10 279 94 347 . 371 Entered New Map 64 | . . . 64 . . Time Decay 837 | 10 279 64 283 . 201 Lost Part 200 | . . 30 . . 170 Squads Dispatched 11 | . 1 . . . 10 Investigation 1 | . . . . . 1 Extermination 1 | . . . . . 1 Reinforcement 9 | . 1 . . . 8 Assault . | . . . . . . Garrison . | . . . . . . Intercept . | . . . . . . Searches Triggered . | . . . . . . Construction Impeded 1 | . . . . . 1 Haulers Reinforced 1 | . . . . . 1 Active Scanning Responses . | . . . . . . Cargo Convoy Interrupts 1 | . . . . . 1 Stealth | -11 -10 -10 -7 -7 -5 --------- Run | Yrd Mat Sub Rec Scr Fac Distress Signals 3 | . 1 . . . 2 Communications Jammed . | . . . . . . Distress Signals . | . . . . . . Times Spotted 68 | . 15 28 1 . 24 Peak Tracking Total 7 | . 4 6 1 . 7 Tactical Retreats 3 | . 1 2 . . . Traps | -11 -10 -10 -7 -7 -5 ------- Run | Yrd Mat Sub Rec Scr Fac Traps Triggered . | . . . . . . Indirectly . | . . . . . . Trap Hack Attempts . | . . . . . . Triggered . | . . . . . . Disarmed . | . . . . . . Reprogrammed . | . . . . . . Reused . | . . . . . . Traps Extracted . | . . . . . . Installed . | . . . . . . Triggered . | . . . . . . Machines | -11 -10 -10 -7 -7 -5 ---------- Run | Yrd Mat Sub Rec Scr Fac Machines Disabled 4 | . . 2 . . 2 Max in Single Turn 2 | . . 1 . . 2 Machines Repaired . | . . . . . . Machines Dismantled . | . . . . . . Machines Sabotaged . | . . . . . . Overloaded Fab Kills . | . . . . . . Hacking | -11 -10 -10 -7 -7 -5 --------- Run | Yrd Mat Sub Rec Scr Fac Machines Accessed 18 | . 2 2 10 2 2 Terminals 6 | . 2 . 4 . . Fabricators . | . . . . . . Repair Stations 1 | . . . . . 1 Recycling Units 7 | . . . 6 . 1 Scanalyzers . | . . . . . . Garrison Access . | . . . . . . Total Hacks 28 | . 5 4 12 5 2 Successful 21 | . 3 4 8 5 1 Failed 7 | . 2 . 4 . 1 Catastrophic 2 | . . . 2 . . Database Lockouts . | . . . . . . Manual 18 | . 4 . 13 . 1 Terminals 11 | . 5 . 6 . . Fabricators . | . . . . . . Repair Stations 1 | . . . . . 1 Recycling Units 7 | . . . 6 . 1 Scanalyzers . | . . . . . . Garrison Access . | . . . . . . Terminal Hacks 12 | . 3 4 . 5 . Record 7 | . . 3 . 4 . Part Schematic 1 | . 1 . . . . Robot Schematic 1 | . 1 . . . . Hauler Manifests 1 | . 1 . . . . Proto ID Catalog 2 | . . 1 . 1 . Fabricator Hacks . | . . . . . . Repair Station Hacks . | . . . . . . Recycling Unit Hacks . | . . . . . . Scanalyzer . | . . . . . . Garrison Access Hacks . | . . . . . . Unauthorized Hacks 9 | . . . 8 . 1 Terminals 2 | . . . 2 . . Botnet 2 | . . . 2 . . Fabricators . | . . . . . . Repair Stations . | . . . . . . Recycling Units 7 | . . . 6 . 1 Tunnel 6 | . . . 6 . . Fedlink 1 | . . . . . 1 Scanalyzers . | . . . . . . Garrison Access . | . . . . . . Data Cores Recovered . | . . . . . . Used . | . . . . . . Hacking Detections 7 | . 2 . 4 . 1 Full Trace Events . | . . . . . . Feedback Events . | . . . . . . Feedback Blocked . | . . . . . . Robot Schematics Acquired 1 | . 1 . . . . Robots Built . | . . . . . . Authchips . | . . . . . . Time . | . . . . . . Total Robot Build Rating . | . . . . . . Part Schematics Acquired 1 | . 1 . . . . Parts Built . | . . . . . . Authchips . | . . . . . . Time . | . . . . . . Total Part Build Rating . | . . . . . . Part Studies Acquired . | . . . . . . Parts Repaired . | . . . . . . Time . | . . . . . . Parts Recycled . | . . . . . . Recycled Matter . | . . . . . . Retrieved Matter . | . . . . . . Retrieved Components . | . . . . . . Parts Scanalyzed . | . . . . . . Part Schematics Acquired . | . . . . . . Parts Damaged . | . . . . . . Bothacking | -11 -10 -10 -7 -7 -5 ------------ Run | Yrd Mat Sub Rec Scr Fac Used RIF Installer . | . . . . . . Robots Hacked . | . . . . . . Non-combat . | . . . . . . Combat . | . . . . . . Robot Hacks Applied . | . . . . . . Relay Couplers Released . | . . . . . . Fabnet Peak Effective % . | . . . . . . Robots Rewired 7 | . . . 7 . . Allies Hacked . | . . . . . . Hacks Repelled . | . . . . . . Allies | -11 -10 -10 -7 -7 -5 -------- Run | Yrd Mat Sub Rec Scr Fac Total Allies 7 | . . . 7 . . Largest Group 7 | . . . 7 7 3 Highest-Rated Group 157 | . . . 157 157 38 Highest-Rated Ally 34 | . . . 34 34 16 Initial UFD Resources 38 | . . . . . 38 Total Orders 2 | . . . . 2 . STAY 2 | . . . . 2 . Ally Attacks 11 | . . . . . 11 Total Damage 111 | . . . . . 111 Kills . | . . . . . . Allies Corrupted . | . . . . . . Allies Melted . | . . . . . . Intel | -11 -10 -10 -7 -7 -5 ------- Run | Yrd Mat Sub Rec Scr Fac Active Infowar (turns) 2080 | 41 1295 492 . . 252 Seismic 1828 | 41 1295 492 . . . T.N.C. 252 | . . . . . 252 Robot Analysis Total . | . . . . . . Derelict Logs Recovered 8 | . . 3 . 5 . Drone Launches . | . . . . . . Drone Recoveries . | . . . . . . Exploration | -11 -10 -10 -7 -7 -5 ------------- Run | Yrd Mat Sub Rec Scr Fac Turns Passed 14703 | 115 1295 7860 1431 3309 693 Spaces Moved 5822 | 57 546 3057 556 1365 241 Core 10 | 10 . . . . . Treads 5779 | 47 546 3057 556 1365 208 Legs 5 | . . . . . 5 Wheels 28 | . . . . . 28 Hover . | . . . . . . Flight . | . . . . . . Fastest Speed 50 | 50 160 160 240 240 160 Average Speed 201 | 140 213 178 240 240 181 Slowest Speed 330 | 160 240 240 240 240 330 Overloaded Moves . | . . . . . . Propulsion Burnouts . | . . . . . . Robots Hopped . | . . . . . . Potential Cave-ins 2 | . . 2 . . . Cave-ins Triggered . | . . . . . . Exploration Rate (%) 58 | 4 73 98 74 94 9 Regions Visited 5 Branch Regions 3 Pre-discovered Areas 8 | . . 1 6 1 . Known Exits Taken . | . . . . . . Unknown Exits Taken 5 | 1 1 1 1 1 . Scrap Searched 20 | . . 14 . 6 . Spaces Dug 38 | . . 38 . . . Terrain Destroyed 135 | . . 47 . . 88 Melee . | . . . . . . Projectile 47 | . . 47 . . . AOE 88 | . . . . . 88 Terrain Rammed . | . . . . . . Walls Destroyed . | . . . . . . Machines Disabled . | . . . . . . Actions | -11 -10 -10 -7 -7 -5 --------- Run | Yrd Mat Sub Rec Scr Fac Total 8369 | 82 614 5237 641 1404 391 Wait 1954 | . 13 1893 8 4 36 Move 5817 | 56 545 3056 555 1364 241 Hop . | . . . . . . Pick Up 98 | 13 13 35 2 16 19 Fast Attach 6 | . . 5 . . 1 Attach 38 | 7 . 8 . . 23 Detach 3 | . . . . . 3 Swap 22 | . 2 7 . 5 8 Drop 47 | . 4 22 2 15 4 Fire 292 | 5 33 193 5 . 56 Melee . | . . . . . . Ram . | . . . . . . Kick . | . . . . . . Crush 8 | 1 4 . 3 . . Escape Stasis . | . . . . . . Rewire 66 | . . . 66 . . Trap . | . . . . . . Miscellaneous 18 | . . 18 . . . Route ------- -11/Scrapyard -10/Materials (discovered 3 exits: [*Mat] / [*Min] / *Sub) -10/Subcaves (discovered 3 exits: [*Mat x2] / *Rec) -7/Recycling -7/Scraptown (discovered 2 exits: *Fac x2) -5/Factory (discovered 1 exit: Upp) History --------- Turn | Location | Event 4 | -11/Scrapyard | Discovered new exit (range 15) 116 | -11/Scrapyard | Entered Materials 249 | -10/Materials | Discovered new exit (range 9) 310 | -10/Materials | Build established: Mutant 941 | -10/Materials | Discovered new exit (range 9) 1281 | -10/Materials | Discovered new exit (range 8) 1411 | -10/Materials | Entered Subcaves 1419 | -10/Subcaves | Ambushed by Subdwellers from Twisted Machinery 1779 | -10/Subcaves | A swath of the cavern ceiling suddenly collapsed 1882 | -10/Subcaves | Shifting Twisted Machinery released Scrap Shield 1989 | -10/Subcaves | Shifting Twisted Machinery released Sub. Power Source 2015 | -10/Subcaves | Visited Clippyterm 2019 | -10/Subcaves | Learned Factory trap positions 2402 | -10/Subcaves | Build established: Subdweller-Mutant 4852 | -10/Subcaves | Shifting Twisted Machinery released Sub. Laser 4876 | -10/Subcaves | Shifting Twisted Machinery released Scrap Shield 4902 | -10/Subcaves | Learned location of Recycling (-7) 4919 | -10/Subcaves | Discovered new exit (range 10) 5330 | -10/Subcaves | A swath of the cavern ceiling suddenly collapsed 5646 | -10/Subcaves | Build established: Mutant 5986 | -10/Subcaves | Shifting Twisted Machinery released Barrage Gun 6145 | -10/Subcaves | Ambushed by angry Subdweller bent on revenge 6472 | -10/Subcaves | Discovered new exit (range 13) 6545 | -10/Subcaves | Build established: Subdweller-Mutant 6585 | -10/Subcaves | Disturbed a concealed Subdweller 7216 | -10/Subcaves | Learned location of 1 exit from Materials 7272 | -10/Subcaves | Visited 4L-MR0's lab 7506 | -10/Subcaves | Learned Materials interactive machine intel 7592 | -10/Subcaves | Discovered new exit (range 10) 7674 | -10/Subcaves | Disturbed a concealed Subdweller 7700 | -10/Subcaves | Disturbed a concealed Subdweller 8276 | -10/Subcaves | Build established: Scavenger-Mutant 9271 | -10/Subcaves | Entered Recycling 10063 | -7/Recycling | Core integrity fell below 50% 10322 | -7/Recycling | Scanned before Scraplab entrance 10665 | -7/Recycling | Entered Scraplab 10685 | -7/Recycling | Discovered new exit (range 2) 10702 | -7/Recycling | Entered Scraptown 10702 | -7/Scraptown | Accompanied by 7 allies 10809 | -7/Scraptown | Build established: Commander-Mutant 11375 | -7/Scraptown | Scanned Subdweller tech in exchange for log data 11382 | -7/Scraptown | Learned Factory trap positions 11387 | -7/Scraptown | Learned Factory emergency access door positions 11392 | -7/Scraptown | Learned Factory non-interactive machine intel 11444 | -7/Scraptown | Discovered new exit (range 13) 11650 | -7/Scraptown | Visited The Evicted 11722 | -7/Scraptown | Visited Bundlers 11942 | -7/Scraptown | Visited TADAMA 12426 | -7/Scraptown | Visited Cave Peace 12496 | -7/Scraptown | Visited CPS Storage 12589 | -7/Scraptown | Visited Supply Room 12623 | -7/Scraptown | Visited Assassins FH 12666 | -7/Scraptown | Visited UFD Registry 12666 | -7/Scraptown | Registered with UFD as "Hammersys" 12714 | -7/Scraptown | Visited Chapter 10 12805 | -7/Scraptown | Visited Junk Repository 12944 | -7/Scraptown | Visited Scrapoid Research Area 12999 | -7/Scraptown | Visited Research Penetration Think Tank 13090 | -7/Scraptown | Delivered Scrap Shield to a Scientist 13361 | -7/Scraptown | Visited Junk Repository 13429 | -7/Scraptown | Visited Infowarlord's Domain 13443 | -7/Scraptown | Found Exp. Terrain Scanner 13483 | -7/Scraptown | Visited Supply Room 13525 | -7/Scraptown | Visited Scrap Suit Storage 13588 | -7/Scraptown | Visited Abandonware Association 13622 | -7/Scraptown | Learned abandonware demo "SHUTEYE.EXE" 13622 | -7/Scraptown | Learned abandonware demo "MELTYB.EXE" 13679 | -7/Scraptown | Visited Science Guys 13879 | -7/Scraptown | Met Optimus 13879 | -7/Scraptown | Accepted into 0bPrime 14001 | -7/Scraptown | Discovered new exit (range 5) 14011 | -7/Scraptown | Entered Factory 14011 | -5/Factory | Accompanied by 3 allies 14011 | -5/Factory | Evolved 10 slots: Power x1, Propulsion x2, Utility x5, Weapon x2 14012 | -5/Factory | Identified exit to Upper Caves 14013 | -5/Factory | Loaded intel: 122 trap records 14015 | -5/Factory | Loaded intel: 232 non-interactive machine locations 14041 | -5/Factory | Loaded intel: 8 recycling unit locations 14218 | -5/Factory | Lost 3 allies 14335 | -5/Factory | Build established: Derelict-Tank 14659 | -5/Factory | Core integrity fell below 50% 14660 | -5/Factory | Cargo convoy interrupted 14665 | -5/Factory | System corruption reached 10% 14693 | -5/Factory | Lost 12 parts (2p4n3u3w) 14704 | -5/Factory | Self-destructed Last Messages --------------- U-05 Engineer builds a Wall. K-01 Serf collects debris. ALERT: Hostile activity reported, dispatching reinforcements to area. R-10 Processor collects Hvy. Machine Gun. Slug penetrates Wall. O-16 Technician destroyed. K-01 Serf collects debris. Penetrated by Slug. U-05 Engineer builds a Wall. K-01 Serf destroyed. Imp. Grenade Launcher destroyed. Destroyed Imp. Grenade Launcher. Construction Platform disabled. Terminal disabled. Sub. Shrapnel Launcher destroyed. K-01 Serf collects debris. Carbon-fiber Leg destroyed. Slug penetrates R-10 Processor. Penetrated by Slug. Map ----- +----------------------------------------------------+ | ????????????????"""?"""??????????????????????????? | | ????????????????"""?"""??????????????????????????? | | ????????????????"""?"""??????????????????????????? | | ?????????????????????????????????????????????????? | | ?????????????????????????????????????????????????? | | ?????????????????????????????????????????????????? | | ??????????????????????????????????????????####???? | | ?????????????????????????""""?""""???????? ### | | ?????????????????????????""""?""""???????# | | ??????"""????????????????""""?""""?????? " | | ??????"""????????????????""""?""""???????# | | ??????"""????????????????????????????????# ### | | ??????????????????????#######+###?????????###????? | | ??????????????????????# # ^^??????????????# | | ??????????????????????# # ?^^??????????????# | | ??????????????????????# ; ^^??????????????# | | ??????????????????????# "##???????????????# | | ??????????????"""""""?# ###########?????# | | ??????????????"""""""?# !####### | | ??????????????"""""""?? k + + | | ??????????????""""""" ? + ####### | | ????????????????? g ## u# << #?????# | | ???"""?"""????""""""" ##% # << !! #?????# | | ???"""?"""??# """"""" < !! #?????# | | ???"""?""" ;w " R << ! #?????# | | ?????????? ; g !@ ###########?????# | | ???"""?""" ; g ;# ###???????????????# | | ???"""?"""??# g ; #????????????????????? | | ???"""?"""? ; % R; #????????????????????? | | ??????????? # h ; #????????????????????? | | ????????????; #????????????????????? | | ????????????; h #????????????????????? | | ????????????;;#;#;;;#;# #????????????????????? | | ???A??????????#?###### #????????????????????? | | ?????????????????????? #???????????????+????? | | ?????????????????????# ????????????????????? | | ?????????????????????# ##????????????????????? | | ?????????????????????# #?????????????????????? | | ?????????????????????# #?????????????????????? | | ?????????????????????# #?????????????????????? | | ???????A????????????? ????????????????????^? | | ????????????????????? ???????????????????^^? | | ????????????????????? ???????????????????^?? | | ????????????????????? ?????????????????????^^? | | ?????????????????????????????????????????????????? | | ?????????????????????????????????????????????????? | | ?????????????????????????????????????????????????? | | ??????????????????????????????????""""??????"""??? | | ??????????????????????????????????""""??????"""??? | | ????????"""?"""???????????????????""""??????"""??? | +----------------------------------------------------+ Best States ------------- Heat Dissipation 86 Energy Generation 31 Energy Capacity 310 Matter Stores 300 Matter Capacity 300 Sight Range 16 Terrain Scan Density 10 Armor Coverage 800 Evasion (%) 50 Core Analysis 6 Recoil Reduction 4 Item Schematics ----------------- Huge Storage Unit | -10/Materials | Hacked Robot Schematics ------------------ M-13 Machinist | -10/Materials | Hacked Fabricated ------------ Nothing Repaired ---------- Nothing Studied --------- None Alien Tech Used ----------------- None Achievements -------------- None Challenges ------------ None Game ------ Seed BurstMissileCyclogen Manual? 0 Play Time 01:18:07 Cumulative 532.7 hours Start 2026.07.28 @ 11:54:42 End 2026.07.28 @ 13:24:05 Sessions 1 Manual Loads 0 Difficulty Rogue Special Mode None Game No. 302 Rogue 302 Adventurer 0 Explorer 0 Win Type - Total 36 Types 17/2/7/2/1/1/1/2/1/2 Lore% 97 Gallery% 92 Achievement% 85 Wizard Run 0 Options --------- Layout 1 ASCII 0 Keyboard 0 Movement Numpad Keybinds 0 Fullscreen 1 Font 24/Proggy Map View 50x35 Zoom Use 0% Tactical HUD 0 Map Filters NONE Filters NONE Steam 1 RUN: f545b151-c07c-48ca-9e27-5336d9132715